[Event "*** SCC Grand Prix: Titled Tuesday Blitz"]
[Site "Chess.com"]
[Date "2020.06.02"]
[Round "7"]
[White "Omk124"]
[Black "gemarin"]
[Result "1-0"]
[WhiteElo "2442"]
[BlackElo "2032"]
[TimeControl "180+1"]
[EndTime "11:19:18 PDT"]
[Termination "Omk124 won on time"]

1. e4 {[%clk 0:03:00.9]} 1... c5 {[%clk 0:02:44]} 2. Nf3 {[%clk 0:03:00.8]} 2...
Nc6 {[%clk 0:02:43.6]} 3. d4 {[%clk 0:03:00.8]} 3... cxd4 {[%clk 0:02:43.6]} 4.
Nxd4 {[%clk 0:03:01.7]} 4... Nf6 {[%clk 0:02:40.6]} 5. Nc3 {[%clk 0:03:01.6]}
5... d6 {[%clk 0:02:37.8]} 6. g3 {[%clk 0:03:01.7]} 6... Bd7 {[%clk 0:02:34.9]}
7. Bg2 {[%clk 0:03:01.2]} 7... g6 {[%clk 0:02:31.5]} 8. O-O {[%clk 0:02:57.7]}
8... Bg7 {[%clk 0:02:31.2]} 9. Nxc6 {[%clk 0:02:54.8]} 9... Bxc6 {[%clk
0:02:30.2]} 10. h3 {[%clk 0:02:55.4]} 10... O-O {[%clk 0:02:29.4]} 11. Be3
{[%clk 0:02:55.4]} 11... Qa5 {[%clk 0:02:25.2]} 12. Qd2 {[%clk 0:02:54.9]} 12...
Rfe8 {[%clk 0:02:21.9]} 13. Rad1 {[%clk 0:02:49.7]} 13... Rac8 {[%clk
0:02:13.8]} 14. Rfe1 {[%clk 0:02:47.4]} 14... a6 {[%clk 0:02:13.6]} 15. a3
{[%clk 0:02:46.1]} 15... b5 {[%clk 0:02:08]} 16. g4 {[%clk 0:02:44]} 16... Qc7
{[%clk 0:02:00.2]} 17. f4 {[%clk 0:02:42.9]} 17... Qb7 {[%clk 0:01:58.3]} 18.
Bd4 {[%clk 0:02:37.4]} 18... a5 {[%clk 0:01:52]} 19. e5 {[%clk 0:02:27.9]} 19...
dxe5 {[%clk 0:01:39.8]} 20. fxe5 {[%clk 0:02:17]} 20... Nd5 {[%clk 0:01:28.6]}
21. Ne4 {[%clk 0:02:05.4]} 21... Red8 {[%clk 0:00:58.9]} 22. Qf2 {[%clk
0:02:00.4]} 22... h6 {[%clk 0:00:23.4]} 23. e6 {[%clk 0:01:58.5]} 23... f6
{[%clk 0:00:18.1]} 24. Nc5 {[%clk 0:01:53.9]} 24... Qa8 {[%clk 0:00:15.7]} 25.
Be4 {[%clk 0:01:45.7]} 25... g5 {[%clk 0:00:15.2]} 26. Qf5 {[%clk 0:01:44.2]}
26... Nf4 {[%clk 0:00:10.2]} 27. Nd7 {[%clk 0:01:41.9]} 27... Bxe4 {[%clk
0:00:07]} 28. Rxe4 {[%clk 0:01:40.2]} 28... Rxc2 {[%clk 0:00:06.4]} 29. Bc3
{[%clk 0:01:15]} 29... Nxh3+ {[%clk 0:00:04.8]} 30. Kf1 {[%clk 0:01:14.7]} 30...
Nf4 {[%clk 0:00:03.7]} 31. Rde1 {[%clk 0:01:09.5]} 31... Rh2 {[%clk 0:00:02.7]}
32. Qxb5 {[%clk 0:01:06.9]} 1-0

[Event "*** SCC Grand Prix: Titled Tuesday Blitz"]
[Site "Chess.com"]
[Date "2020.06.02"]
[Round "7"]
[White "Korchmar_Vasiliy"]
[Black "Gajuchess"]
[Result "1-0"]
[WhiteElo "2604"]
[BlackElo "2752"]
[TimeControl "180+1"]
[EndTime "11:19:22 PDT"]
[Termination "Korchmar_Vasiliy won by checkmate"]

1. d4 {[%clk 0:03:00.9]} 1... Nf6 {[%clk 0:02:58.9]} 2. c4 {[%clk 0:03:01.4]}
2... e6 {[%clk 0:02:58.3]} 3. g3 {[%clk 0:03:01.6]} 3... Bb4+ {[%clk 0:02:59]}
4. Nd2 {[%clk 0:03:01]} 4... d5 {[%clk 0:02:56]} 5. Bg2 {[%clk 0:03:00.8]} 5...
O-O {[%clk 0:02:55.3]} 6. Nf3 {[%clk 0:03:00.8]} 6... dxc4 {[%clk 0:02:52.1]} 7.
Qc2 {[%clk 0:02:55.9]} 7... a5 {[%clk 0:02:50.3]} 8. a3 {[%clk 0:02:45.3]} 8...
Bxd2+ {[%clk 0:02:47.7]} 9. Bxd2 {[%clk 0:02:46.2]} 9... b5 {[%clk 0:02:45]} 10.
a4 {[%clk 0:02:46]} 10... c6 {[%clk 0:02:45.1]} 11. e4 {[%clk 0:02:45.5]} 11...
b4 {[%clk 0:02:19.4]} 12. e5 {[%clk 0:02:42.8]} 12... Nd5 {[%clk 0:02:19.2]} 13.
Ng5 {[%clk 0:02:42.9]} 13... f5 {[%clk 0:02:19.5]} 14. exf6 {[%clk 0:02:38.8]}
14... Nxf6 {[%clk 0:02:20.1]} 15. Qxc4 {[%clk 0:02:37]} 15... h6 {[%clk
0:01:47.4]} 16. Nf3 {[%clk 0:02:35.8]} 16... Ba6 {[%clk 0:01:47.5]} 17. Qxe6+
{[%clk 0:02:34.6]} 17... Kh7 {[%clk 0:01:38.8]} 18. O-O-O {[%clk 0:02:34.3]}
18... Nbd7 {[%clk 0:01:14.6]} 19. Bh3 {[%clk 0:01:37.2]} 19... Nb6 {[%clk
0:00:57]} 20. Ne5 {[%clk 0:01:23.4]} 20... g6 {[%clk 0:00:53.5]} 21. Bf5 {[%clk
0:00:45.1]} 21... gxf5 {[%clk 0:00:38.1]} 22. Qxf5+ {[%clk 0:00:46]} 22... Kh8
{[%clk 0:00:38.5]} 23. Bxh6 {[%clk 0:00:46]} 23... Qd5 {[%clk 0:00:12]} 24. Ng6+
{[%clk 0:00:39.5]} 24... Kh7 {[%clk 0:00:09.5]} 25. Nxf8+ {[%clk 0:00:40.1]}
25... Kxh6 {[%clk 0:00:09.9]} 26. Qg6# {[%clk 0:00:40.3]} 1-0

[Event "*** SCC Grand Prix: Titled Tuesday Blitz"]
[Site "Chess.com"]
[Date "2020.06.02"]
[Round "7"]
[White "Chuchofrio1"]
[Black "HunterBRR"]
[Result "1-0"]
[WhiteElo "2272"]
[BlackElo "2024"]
[TimeControl "180+1"]
[EndTime "11:19:22 PDT"]
[Termination "Chuchofrio1 won on time"]

1. d4 {[%clk 0:03:00.9]} 1... Nf6 {[%clk 0:02:59]} 2. c4 {[%clk 0:03:00.8]} 2...
g6 {[%clk 0:02:59.2]} 3. Nc3 {[%clk 0:03:01]} 3... Bg7 {[%clk 0:02:59.3]} 4. e4
{[%clk 0:02:59.9]} 4... d6 {[%clk 0:02:59.7]} 5. h3 {[%clk 0:02:59.5]} 5... O-O
{[%clk 0:02:58.7]} 6. Be3 {[%clk 0:02:59.9]} 6... c5 {[%clk 0:02:56]} 7. d5
{[%clk 0:02:59.8]} 7... e6 {[%clk 0:02:54.3]} 8. Bd3 {[%clk 0:03:00.3]} 8...
exd5 {[%clk 0:02:53]} 9. exd5 {[%clk 0:02:59.8]} 9... Re8 {[%clk 0:02:53.1]} 10.
Nf3 {[%clk 0:02:59.5]} 10... Nbd7 {[%clk 0:02:49.9]} 11. O-O {[%clk 0:02:58.8]}
11... Ne5 {[%clk 0:02:48.8]} 12. Nxe5 {[%clk 0:02:58.6]} 12... Rxe5 {[%clk
0:02:48.1]} 13. Bf4 {[%clk 0:02:58.4]} 13... Re8 {[%clk 0:02:45.2]} 14. Qf3
{[%clk 0:02:53.8]} 14... Nh5 {[%clk 0:02:34.1]} 15. Bh2 {[%clk 0:02:47.7]} 15...
Be5 {[%clk 0:02:33.3]} 16. Bxe5 {[%clk 0:02:44.6]} 16... Rxe5 {[%clk 0:02:31.5]}
17. Rfe1 {[%clk 0:02:41.9]} 17... Nf6 {[%clk 0:02:27.9]} 18. Rxe5 {[%clk
0:02:40.7]} 18... dxe5 {[%clk 0:02:28.8]} 19. Qe3 {[%clk 0:02:35.3]} 19... Qd6
{[%clk 0:02:25.4]} 20. Nb5 {[%clk 0:02:31.1]} 20... Qe7 {[%clk 0:02:15.9]} 21.
d6 {[%clk 0:02:31]} 21... Qd8 {[%clk 0:01:59.7]} 22. Qxe5 {[%clk 0:02:25.5]}
22... Be6 {[%clk 0:01:40.3]} 23. Nc7 {[%clk 0:02:20.5]} 23... Rc8 {[%clk
0:01:34]} 24. Nxe6 {[%clk 0:02:20.1]} 24... fxe6 {[%clk 0:01:34.5]} 25. Qxe6+
{[%clk 0:02:19.9]} 25... Kg7 {[%clk 0:01:35]} 26. Re1 {[%clk 0:02:18.9]} 26...
Rc6 {[%clk 0:01:15]} 27. Qe7+ {[%clk 0:02:10.5]} 27... Qxe7 {[%clk 0:01:14.6]}
28. dxe7 {[%clk 0:02:10.5]} 28... Ne8 {[%clk 0:01:10.3]} 29. Kf1 {[%clk
0:01:54]} 29... Kf6 {[%clk 0:01:06.2]} 30. Be4 {[%clk 0:01:53.7]} 30... Rc7
{[%clk 0:01:03]} 31. Bd5 {[%clk 0:01:51]} 31... b6 {[%clk 0:00:15.8]} 32. Re6+
{[%clk 0:01:48.9]} 32... Kf5 {[%clk 0:00:16.2]} 33. g4+ {[%clk 0:01:48]} 33...
Kg5 {[%clk 0:00:14.2]} 34. Bc6 {[%clk 0:01:42.7]} 34... Ng7 {[%clk 0:00:10.8]}
35. e8=Q {[%clk 0:01:38.5]} 35... Nxe8 {[%clk 0:00:10.6]} 36. Bxe8 {[%clk
0:01:38.4]} 36... Kh4 {[%clk 0:00:07.5]} 37. Re3 {[%clk 0:01:36.1]} 37... Rc8
{[%clk 0:00:04.7]} 38. Kg2 {[%clk 0:01:35]} 38... Rd8 {[%clk 0:00:04.6]} 39. Re7
{[%clk 0:01:29.6]} 39... h6 {[%clk 0:00:01.7]} 40. Bxg6 {[%clk 0:01:28.7]} 1-0

[Event "*** SCC Grand Prix: Titled Tuesday Blitz"]
[Site "Chess.com"]
[Date "2020.06.02"]
[Round "7"]
[White "Sjakkerntobi"]
[Black "larisakalinina"]
[Result "0-1"]
[WhiteElo "2250"]
[BlackElo "1990"]
[TimeControl "180+1"]
[EndTime "11:19:22 PDT"]
[Termination "larisakalinina won by resignation"]

1. e4 {[%clk 0:03:00.9]} 1... c5 {[%clk 0:02:59.4]} 2. Nf3 {[%clk 0:02:57.8]}
2... Nc6 {[%clk 0:02:59.7]} 3. d4 {[%clk 0:02:56.7]} 3... cxd4 {[%clk
0:03:00.1]} 4. Nxd4 {[%clk 0:02:57.6]} 4... Nf6 {[%clk 0:03:00.1]} 5. Nc3 {[%clk
0:02:53.1]} 5... d6 {[%clk 0:03:00.3]} 6. Bg5 {[%clk 0:02:51.5]} 6... e6 {[%clk
0:02:58.4]} 7. Qd2 {[%clk 0:02:40.4]} 7... h6 {[%clk 0:02:57.7]} 8. Bh4 {[%clk
0:02:38.7]} 8... Be7 {[%clk 0:02:56.6]} 9. f4 {[%clk 0:02:38.6]} 9... Nxd4
{[%clk 0:02:56.3]} 10. Qxd4 {[%clk 0:02:34]} 10... Qa5 {[%clk 0:02:49.2]} 11.
O-O-O {[%clk 0:02:27.7]} 11... O-O {[%clk 0:02:44.4]} 12. Kb1 {[%clk 0:02:24.8]}
12... Rd8 {[%clk 0:02:35.3]} 13. Bd3 {[%clk 0:02:11.6]} 13... Rb8 {[%clk
0:02:26.4]} 14. Qf2 {[%clk 0:01:56]} 14... Bd7 {[%clk 0:02:06]} 15. e5 {[%clk
0:01:51.3]} 15... dxe5 {[%clk 0:02:04.5]} 16. fxe5 {[%clk 0:01:52.2]} 16... Qxe5
{[%clk 0:02:02.5]} 17. Bg3 {[%clk 0:01:51.1]} 17... Qa5 {[%clk 0:01:58.5]} 18.
Bxb8 {[%clk 0:01:49.7]} 18... Rxb8 {[%clk 0:01:57.4]} 19. Ne4 {[%clk 0:01:50.6]}
19... Nd5 {[%clk 0:01:42.4]} 20. Rhf1 {[%clk 0:01:29.8]} 20... Rf8 {[%clk
0:01:37.5]} 21. c3 {[%clk 0:01:18.1]} 21... Ba4 {[%clk 0:01:14.7]} 22. Rde1
{[%clk 0:01:14.9]} 22... f5 {[%clk 0:01:06.5]} 23. Nd2 {[%clk 0:00:38.7]} 23...
Nxc3+ {[%clk 0:00:58.3]} 24. bxc3 {[%clk 0:00:39.6]} 24... Qxc3 {[%clk
0:00:56.6]} 25. Qe3 {[%clk 0:00:35.5]} 25... Bf6 {[%clk 0:00:38.5]} 26. Qxe6+
{[%clk 0:00:27.5]} 26... Kh8 {[%clk 0:00:38.5]} 27. Qe8 {[%clk 0:00:17.2]} 0-1

[Event "*** SCC Grand Prix: Titled Tuesday Blitz"]
[Site "Chess.com"]
[Date "2020.06.02"]
[Round "7"]
[White "annamaja"]
[Black "VALPARAISO37"]
[Result "0-1"]
[WhiteElo "2189"]
[BlackElo "2356"]
[TimeControl "180+1"]
[EndTime "11:19:24 PDT"]
[Termination "VALPARAISO37 won by checkmate"]

1. e4 {[%clk 0:03:00.9]} 1... e5 {[%clk 0:02:59.7]} 2. Nf3 {[%clk 0:03:01]} 2...
Nc6 {[%clk 0:02:59.4]} 3. Bb5 {[%clk 0:03:00.3]} 3... a6 {[%clk 0:02:58.9]} 4.
Ba4 {[%clk 0:03:00.5]} 4... Nf6 {[%clk 0:02:58.6]} 5. d3 {[%clk 0:03:00.6]} 5...
Bc5 {[%clk 0:02:58.2]} 6. O-O {[%clk 0:03:00.9]} 6... b5 {[%clk 0:02:57.7]} 7.
Bb3 {[%clk 0:03:00.9]} 7... d6 {[%clk 0:02:57.7]} 8. c3 {[%clk 0:03:01.3]} 8...
O-O {[%clk 0:02:56]} 9. Nbd2 {[%clk 0:02:59.9]} 9... Bb6 {[%clk 0:02:54.7]} 10.
Re1 {[%clk 0:02:58.6]} 10... Ne7 {[%clk 0:02:53.9]} 11. Nf1 {[%clk 0:02:58.6]}
11... Ng6 {[%clk 0:02:54.1]} 12. Ng3 {[%clk 0:02:51.3]} 12... h6 {[%clk
0:02:53.4]} 13. Nf5 {[%clk 0:02:45.4]} 13... d5 {[%clk 0:02:53.6]} 14. Bxh6
{[%clk 0:02:17.2]} 14... dxe4 {[%clk 0:02:52.2]} 15. Nxg7 {[%clk 0:02:03.9]}
15... exf3 {[%clk 0:02:48.2]} 16. Qxf3 {[%clk 0:02:04.8]} 16... Bg4 {[%clk
0:02:45.9]} 17. Qg3 {[%clk 0:01:54]} 17... Kh7 {[%clk 0:02:41.6]} 18. Qe3 {[%clk
0:01:08.8]} 18... Nf4 {[%clk 0:02:35.4]} 19. Qxe5 {[%clk 0:01:02.1]} 19... Bxf2+
{[%clk 0:02:24.6]} 20. Kh1 {[%clk 0:00:52.7]} 20... Nxd3 {[%clk 0:02:17.1]} 21.
Qg5 {[%clk 0:00:33.7]} 21... Ng8 {[%clk 0:01:50.5]} 22. Qxg4 {[%clk 0:00:19.6]}
22... Nxh6 {[%clk 0:01:50]} 23. Qe4+ {[%clk 0:00:16.4]} 23... f5 {[%clk
0:01:49.5]} 24. Nxf5 {[%clk 0:00:13.3]} 24... Nxf5 {[%clk 0:01:47.7]} 25. Red1
{[%clk 0:00:11.7]} 25... Qh4 {[%clk 0:01:35.5]} 26. Qxh4+ {[%clk 0:00:06.2]}
26... Nxh4 {[%clk 0:01:32.9]} 27. Rxd3 {[%clk 0:00:06.4]} 27... Nf5 {[%clk
0:01:33.1]} 28. Rd7+ {[%clk 0:00:06]} 28... Kg6 {[%clk 0:01:32.6]} 29. Bc2
{[%clk 0:00:06.3]} 29... Kg5 {[%clk 0:01:31.3]} 30. g3 {[%clk 0:00:03.4]} 30...
Bb6 {[%clk 0:01:27.9]} 31. Rad1 {[%clk 0:00:02.2]} 31... Rae8 {[%clk 0:01:25.6]}
32. Bxf5 {[%clk 0:00:01.7]} 32... Rxf5 {[%clk 0:01:24.2]} 33. Rg7+ {[%clk
0:00:01.8]} 33... Kh6 {[%clk 0:01:24.5]} 34. Rgd7 {[%clk 0:00:02.2]} 34... Re2
{[%clk 0:01:24.2]} 35. R7d2 {[%clk 0:00:02.7]} 35... Rff2 {[%clk 0:01:23.8]} 36.
Rxe2 {[%clk 0:00:02.9]} 36... Rxe2 {[%clk 0:01:24.1]} 37. a4 {[%clk 0:00:03]}
37... Rxb2 {[%clk 0:01:23.6]} 38. axb5 {[%clk 0:00:03.6]} 38... axb5 {[%clk
0:01:23.9]} 39. h4 {[%clk 0:00:04.1]} 39... Kh5 {[%clk 0:01:23.8]} 40. Rd5+
{[%clk 0:00:04]} 40... Kg4 {[%clk 0:01:24.1]} 41. Rg5+ {[%clk 0:00:03.8]} 41...
Kh3 {[%clk 0:01:24.4]} 42. Rf5 {[%clk 0:00:02.3]} 42... Rh2# {[%clk 0:01:24.6]}
0-1

[Event "*** SCC Grand Prix: Titled Tuesday Blitz"]
[Site "Chess.com"]
[Date "2020.06.02"]
[Round "7"]
[White "Zenzo"]
[Black "Ginzburg_Yakov"]
[Result "1-0"]
[WhiteElo "2548"]
[BlackElo "2333"]
[TimeControl "180+1"]
[EndTime "11:19:29 PDT"]
[Termination "Zenzo won by resignation"]

1. e4 {[%clk 0:03:00]} 1... c5 {[%clk 0:02:59.1]} 2. Nf3 {[%clk 0:03:00.1]} 2...
e6 {[%clk 0:02:59.9]} 3. d4 {[%clk 0:03:00.4]} 3... cxd4 {[%clk 0:03:00.2]} 4.
Nxd4 {[%clk 0:03:01.3]} 4... Nf6 {[%clk 0:03:01.1]} 5. Nc3 {[%clk 0:03:01.6]}
5... Nc6 {[%clk 0:03:02]} 6. Ndb5 {[%clk 0:03:00.5]} 6... Bb4 {[%clk 0:02:59.9]}
7. a3 {[%clk 0:02:59.8]} 7... Bxc3+ {[%clk 0:03:00.4]} 8. Nxc3 {[%clk
0:03:00.7]} 8... d5 {[%clk 0:03:00.5]} 9. exd5 {[%clk 0:03:01.6]} 9... exd5
{[%clk 0:03:00.8]} 10. Bd3 {[%clk 0:03:02.2]} 10... O-O {[%clk 0:03:00.6]} 11.
O-O {[%clk 0:03:02]} 11... d4 {[%clk 0:03:00.9]} 12. Ne2 {[%clk 0:03:01.3]}
12... h6 {[%clk 0:02:59.5]} 13. Re1 {[%clk 0:02:49.6]} 13... Re8 {[%clk
0:02:54.1]} 14. Ng3 {[%clk 0:02:44.3]} 14... Be6 {[%clk 0:02:44.2]} 15. Bf4
{[%clk 0:02:26.2]} 15... Nd5 {[%clk 0:02:44.1]} 16. Bd2 {[%clk 0:02:18.8]} 16...
Qd7 {[%clk 0:02:43.6]} 17. Qh5 {[%clk 0:02:07.7]} 17... Bg4 {[%clk 0:01:53.9]}
18. Qh4 {[%clk 0:02:06.3]} 18... Rxe1+ {[%clk 0:01:53.6]} 19. Rxe1 {[%clk
0:02:05.4]} 19... Re8 {[%clk 0:01:54.3]} 20. Rxe8+ {[%clk 0:02:04.4]} 20... Qxe8
{[%clk 0:01:51.6]} 21. Qxg4 {[%clk 0:02:02.5]} 21... Nf6 {[%clk 0:01:43]} 22.
Qe2 {[%clk 0:01:49.9]} 22... Qd8 {[%clk 0:01:40.6]} 23. Nf5 {[%clk 0:01:48.2]}
23... a5 {[%clk 0:01:35.6]} 24. Bb5 {[%clk 0:01:46.9]} 24... Qb6 {[%clk
0:01:31.4]} 25. Bxc6 {[%clk 0:01:42.4]} 25... bxc6 {[%clk 0:01:31.4]} 26. b3
{[%clk 0:01:36.5]} 26... a4 {[%clk 0:01:28.7]} 27. b4 {[%clk 0:01:32.5]} 27...
c5 {[%clk 0:01:28.1]} 28. g3 {[%clk 0:01:28.8]} 28... cxb4 {[%clk 0:01:26]} 29.
Bxb4 {[%clk 0:01:27.8]} 29... Qc7 {[%clk 0:01:23.1]} 30. Ne7+ {[%clk 0:01:24.8]}
30... Kh7 {[%clk 0:01:22.6]} 31. Qd3+ {[%clk 0:01:24.5]} 31... g6 {[%clk
0:01:22.1]} 32. Qxd4 {[%clk 0:01:23.4]} 32... Nd7 {[%clk 0:01:13.5]} 33. Qf4
{[%clk 0:00:58.7]} 33... Ne5 {[%clk 0:01:11.2]} 34. Nd5 {[%clk 0:00:54.9]} 34...
Qb8 {[%clk 0:00:59.1]} 35. Bc3 {[%clk 0:00:46.1]} 1-0

[Event "*** SCC Grand Prix: Titled Tuesday Blitz"]
[Site "Chess.com"]
[Date "2020.06.02"]
[Round "7"]
[White "Gromes7"]
[Black "fabianvivasz"]
[Result "1-0"]
[WhiteElo "2054"]
[BlackElo "2275"]
[TimeControl "180+1"]
[EndTime "11:19:29 PDT"]
[Termination "Gromes7 won on time"]

1. d4 {[%clk 0:03:00.9]} 1... Nf6 {[%clk 0:02:38.5]} 2. g3 {[%clk 0:03:00.7]}
2... g6 {[%clk 0:02:35.7]} 3. Bg2 {[%clk 0:03:00.4]} 3... Bg7 {[%clk 0:02:35.6]}
4. Nf3 {[%clk 0:03:01.1]} 4... O-O {[%clk 0:02:35.7]} 5. O-O {[%clk 0:03:01.6]}
5... d5 {[%clk 0:02:35.1]} 6. c4 {[%clk 0:03:01.3]} 6... dxc4 {[%clk 0:02:34.4]}
7. Na3 {[%clk 0:03:01.3]} 7... c3 {[%clk 0:02:34]} 8. bxc3 {[%clk 0:03:02.2]}
8... c5 {[%clk 0:02:30.2]} 9. e3 {[%clk 0:03:02.1]} 9... Nc6 {[%clk 0:02:29]}
10. Qe2 {[%clk 0:03:01.5]} 10... Bf5 {[%clk 0:02:13.4]} 11. Rd1 {[%clk
0:02:50.2]} 11... Qc8 {[%clk 0:02:01.8]} 12. d5 {[%clk 0:02:40.8]} 12... Na5
{[%clk 0:01:53.3]} 13. Nc4 {[%clk 0:02:35.3]} 13... Nxc4 {[%clk 0:01:45.2]} 14.
Qxc4 {[%clk 0:02:36.2]} 14... Be4 {[%clk 0:01:38]} 15. Ba3 {[%clk 0:02:27.6]}
15... b6 {[%clk 0:01:35.6]} 16. d6 {[%clk 0:02:09.7]} 16... exd6 {[%clk
0:01:28.9]} 17. Rxd6 {[%clk 0:02:06.6]} 17... Qb7 {[%clk 0:01:25.3]} 18. Nh4
{[%clk 0:02:00.3]} 18... Bxg2 {[%clk 0:01:25.5]} 19. Nxg2 {[%clk 0:02:00.9]}
19... Ne4 {[%clk 0:01:25.5]} 20. Rd3 {[%clk 0:01:55.9]} 20... b5 {[%clk
0:01:23.9]} 21. Qd5 {[%clk 0:01:47.1]} 21... Qxd5 {[%clk 0:01:19]} 22. Rxd5
{[%clk 0:01:47.1]} 22... b4 {[%clk 0:01:07.8]} 23. Bb2 {[%clk 0:01:31.5]} 23...
bxc3 {[%clk 0:01:03.4]} 24. Ba3 {[%clk 0:01:31.3]} 24... Rfd8 {[%clk 0:00:44.6]}
25. Rad1 {[%clk 0:01:28.6]} 25... Rxd5 {[%clk 0:00:29.7]} 26. Rxd5 {[%clk
0:01:29.5]} 26... c2 {[%clk 0:00:30]} 27. f3 {[%clk 0:01:26]} 27... Nc3 {[%clk
0:00:24.9]} 28. Rxc5 {[%clk 0:01:21.9]} 28... Bf8 {[%clk 0:00:04.4]} 29. Rxc3
{[%clk 0:01:20.8]} 29... Bxa3 {[%clk 0:00:04.5]} 30. Rxc2 {[%clk 0:01:20.7]}
30... Rd8 {[%clk 0:00:04.4]} 31. Kf2 {[%clk 0:01:19.9]} 31... Rd1 {[%clk
0:00:04.1]} 32. Nf4 {[%clk 0:01:18.9]} 32... Kg7 {[%clk 0:00:03.9]} 33. h4
{[%clk 0:01:17]} 33... h6 {[%clk 0:00:02.6]} 34. Ne2 {[%clk 0:01:14.1]} 1-0

[Event "*** SCC Grand Prix: Titled Tuesday Blitz"]
[Site "Chess.com"]
[Date "2020.06.02"]
[Round "7"]
[White "PawnEatingZombie"]
[Black "pfalcon1949"]
[Result "1-0"]
[WhiteElo "2209"]
[BlackElo "2011"]
[TimeControl "180+1"]
[EndTime "11:19:32 PDT"]
[Termination "PawnEatingZombie won by resignation"]

1. d4 {[%clk 0:03:00.9]} 1... Nf6 {[%clk 0:02:58.4]} 2. c4 {[%clk 0:03:00.9]}
2... e6 {[%clk 0:02:57.7]} 3. Nc3 {[%clk 0:03:01.3]} 3... Bb4 {[%clk 0:02:56.1]}
4. e3 {[%clk 0:03:00.5]} 4... b6 {[%clk 0:02:53.1]} 5. Bd2 {[%clk 0:02:59.5]}
5... c5 {[%clk 0:02:53]} 6. Nf3 {[%clk 0:02:58.9]} 6... Bb7 {[%clk 0:02:50.1]}
7. Bd3 {[%clk 0:02:58.2]} 7... O-O {[%clk 0:02:45.8]} 8. O-O {[%clk 0:02:57.9]}
8... d5 {[%clk 0:02:42.1]} 9. cxd5 {[%clk 0:02:38.2]} 9... exd5 {[%clk
0:02:26.8]} 10. Ne5 {[%clk 0:02:32]} 10... c4 {[%clk 0:02:20]} 11. Bc2 {[%clk
0:02:29.6]} 11... Nbd7 {[%clk 0:02:13.9]} 12. f4 {[%clk 0:02:29.4]} 12... Bxc3
{[%clk 0:02:07.8]} 13. bxc3 {[%clk 0:02:22.4]} 13... Rc8 {[%clk 0:01:59.8]} 14.
a4 {[%clk 0:02:20.5]} 14... Ne4 {[%clk 0:01:58.8]} 15. Qe2 {[%clk 0:01:40.9]}
15... f6 {[%clk 0:01:56]} 16. Nxd7 {[%clk 0:01:34.6]} 16... Qxd7 {[%clk
0:01:55.1]} 17. Bxe4 {[%clk 0:01:33.6]} 17... dxe4 {[%clk 0:01:54.5]} 18. Rfb1
{[%clk 0:01:32.8]} 18... f5 {[%clk 0:01:53.7]} 19. a5 {[%clk 0:01:30.6]} 19...
b5 {[%clk 0:01:52.5]} 20. a6 {[%clk 0:01:29.2]} 20... Bc6 {[%clk 0:01:49.4]} 21.
Bc1 {[%clk 0:01:29.5]} 21... Rb8 {[%clk 0:01:48.3]} 22. Ba3 {[%clk 0:01:29.4]}
22... Rfc8 {[%clk 0:01:47.6]} 23. Bc5 {[%clk 0:01:27.6]} 23... Rc7 {[%clk
0:01:45.8]} 24. d5 {[%clk 0:01:19.7]} 24... Qxd5 {[%clk 0:01:35.4]} 25. Bd4
{[%clk 0:01:19.7]} 25... Rd7 {[%clk 0:01:32.1]} 26. Kf2 {[%clk 0:01:18.8]} 26...
h6 {[%clk 0:01:26.7]} 27. g4 {[%clk 0:01:12.9]} 27... Rf8 {[%clk 0:01:18.4]} 28.
Rg1 {[%clk 0:01:06.8]} 28... Rff7 {[%clk 0:01:01.1]} 29. g5 {[%clk 0:00:59]}
29... hxg5 {[%clk 0:00:58.6]} 30. Rxg5 {[%clk 0:00:57.7]} 30... Qe6 {[%clk
0:00:46.6]} 31. Rag1 {[%clk 0:00:56.8]} 31... Ba8 {[%clk 0:00:40]} 32. Rg6
{[%clk 0:00:54.2]} 32... Qe8 {[%clk 0:00:32.1]} 33. Qh5 {[%clk 0:00:51.2]} 33...
b4 {[%clk 0:00:30.7]} 34. Rh6 {[%clk 0:00:46.9]} 1-0

[Event "*** SCC Grand Prix: Titled Tuesday Blitz"]
[Site "Chess.com"]
[Date "2020.06.02"]
[Round "7"]
[White "BelaKis"]
[Black "canary2016"]
[Result "1-0"]
[WhiteElo "2201"]
[BlackElo "1969"]
[TimeControl "180+1"]
[EndTime "11:19:32 PDT"]
[Termination "BelaKis won by checkmate"]

1. Nf3 {[%clk 0:03:00.9]} 1... d5 {[%clk 0:02:58.9]} 2. g3 {[%clk 0:03:00.6]}
2... c6 {[%clk 0:02:58.5]} 3. Bg2 {[%clk 0:03:01.2]} 3... Nf6 {[%clk 0:02:58.5]}
4. O-O {[%clk 0:03:01.8]} 4... Bg4 {[%clk 0:02:57.3]} 5. d3 {[%clk 0:03:01.6]}
5... e6 {[%clk 0:02:57.1]} 6. a3 {[%clk 0:03:01.1]} 6... Nbd7 {[%clk 0:02:56.8]}
7. Nbd2 {[%clk 0:03:01.6]} 7... e5 {[%clk 0:02:56.4]} 8. h3 {[%clk 0:02:48.3]}
8... Bh5 {[%clk 0:02:54.3]} 9. e4 {[%clk 0:02:40.8]} 9... dxe4 {[%clk 0:02:53]}
10. dxe4 {[%clk 0:02:40.6]} 10... Be7 {[%clk 0:02:52.9]} 11. Qe1 {[%clk
0:02:34.7]} 11... O-O {[%clk 0:02:52.5]} 12. Nh4 {[%clk 0:02:34.6]} 12... Re8
{[%clk 0:02:46.4]} 13. Nf5 {[%clk 0:02:34]} 13... Bc5 {[%clk 0:02:40.6]} 14. c3
{[%clk 0:02:24.6]} 14... Bb6 {[%clk 0:02:37.6]} 15. b4 {[%clk 0:02:23.9]} 15...
c5 {[%clk 0:02:35.2]} 16. Bb2 {[%clk 0:02:12]} 16... cxb4 {[%clk 0:02:34.7]} 17.
axb4 {[%clk 0:02:10.3]} 17... Rc8 {[%clk 0:02:32.6]} 18. Nd6 {[%clk 0:02:08.7]}
18... Re6 {[%clk 0:02:26.4]} 19. Nxc8 {[%clk 0:02:07.8]} 19... Qxc8 {[%clk
0:02:26.5]} 20. g4 {[%clk 0:02:01.5]} 20... Bg6 {[%clk 0:02:25.5]} 21. Qe2
{[%clk 0:02:01.9]} 21... Rc6 {[%clk 0:02:24]} 22. Rfc1 {[%clk 0:01:45.3]} 22...
Nf8 {[%clk 0:02:23.3]} 23. c4 {[%clk 0:01:45.5]} 23... Ne6 {[%clk 0:02:17.8]}
24. c5 {[%clk 0:01:45.7]} 24... Bd8 {[%clk 0:02:15.3]} 25. f3 {[%clk 0:01:38.7]}
25... Nf4 {[%clk 0:02:13]} 26. Qc4 {[%clk 0:01:38.8]} 26... Qd7 {[%clk
0:02:02.4]} 27. Nf1 {[%clk 0:01:36.4]} 27... Be7 {[%clk 0:01:44.6]} 28. Rd1
{[%clk 0:01:34.3]} 28... Qc7 {[%clk 0:01:37]} 29. Ne3 {[%clk 0:01:26]} 29... h6
{[%clk 0:01:36.3]} 30. Nd5 {[%clk 0:01:22.3]} 30... N6xd5 {[%clk 0:01:35.6]} 31.
exd5 {[%clk 0:01:22.5]} 31... Rf6 {[%clk 0:01:30.8]} 32. Rxa7 {[%clk 0:01:20.2]}
32... Nxg2 {[%clk 0:01:20.4]} 33. Kxg2 {[%clk 0:01:20]} 33... Rf4 {[%clk
0:01:18.4]} 34. Qe2 {[%clk 0:01:14.2]} 34... Bxc5 {[%clk 0:01:11.3]} 35. bxc5
{[%clk 0:01:12.2]} 35... Qxc5 {[%clk 0:01:11.3]} 36. Ra8+ {[%clk 0:01:12]} 36...
Kh7 {[%clk 0:01:09.9]} 37. Bxe5 {[%clk 0:01:09.2]} 37... Rc4 {[%clk 0:01:04.9]}
38. Rd2 {[%clk 0:01:08.8]} 38... f6 {[%clk 0:01:00.4]} 39. Bb2 {[%clk
0:01:05.1]} 39... Rb4 {[%clk 0:00:57.1]} 40. d6 {[%clk 0:01:04]} 40... Rc4
{[%clk 0:00:30.2]} 41. d7 {[%clk 0:01:01.8]} 41... Rc2 {[%clk 0:00:28.5]} 42.
Rxc2 {[%clk 0:01:00.9]} 42... Bxc2 {[%clk 0:00:24.8]} 43. d8=Q {[%clk
0:00:59.8]} 43... Bb3 {[%clk 0:00:21.6]} 44. Qe4+ {[%clk 0:00:55.7]} 44... g6
{[%clk 0:00:20.1]} 45. Qh8# {[%clk 0:00:54.8]} 1-0